[Event "Titled Tuesday Blitz May 24 Early 2022"]
[White "Agasarov, Benik"]
[Black "Martin, Lewis"]
[WhiteFideId "13314823"]
[BlackFideId "410551"]
[WhiteElo "2630"]
[BlackElo "2145"]
[Result "1-0"]
[Round "01"]
[TimeControl "180+1"]
[Date "2022.05.25"]
[WhiteClock "0:00:26"]
[BlackClock "0:00:15"]

1. d4 {[%clk 0:02:58]}  d5 {[%clk 0:02:59]} 2. Nf3 {[%clk 0:02:54]}  Nf6 {[%clk 0:02:58]} 3. c4 {[%clk 0:02:52]}  c6 {[%clk 0:02:58]} 4. Nc3 {[%clk 0:02:48]}  dxc4 {[%clk 0:02:57]} 5. Ne5 {[%clk 0:02:48]}  Nbd7 {[%clk 0:02:54]} 6. Nxc4 {[%clk 0:02:46]}  Nb6 {[%clk 0:02:53]} 7. e4 {[%clk 0:02:45]}  Be6 {[%clk 0:02:28]} 8. Na5 {[%clk 0:02:41]}  Qc7 {[%clk 0:02:21]} 9. Be3 {[%clk 0:02:33]}  g6 {[%clk 0:02:15]} 10. Rc1 {[%clk 0:02:25]}  Rd8 {[%clk 0:02:08]} 11. d5 {[%clk 0:01:44]}  Nbxd5 {[%clk 0:01:54]} 12. Nxd5 {[%clk 0:01:33]}  Qxa5+ {[%clk 0:01:52]} 13. b4 {[%clk 0:01:33]}  Rxd5 {[%clk 0:01:22]} 14. bxa5 {[%clk 0:01:18]}  Rxd1+ {[%clk 0:01:22]} 15. Rxd1 {[%clk 0:01:18]}  Bg7 {[%clk 0:01:20]} 16. Bxa7 {[%clk 0:01:12]}  O-O {[%clk 0:01:17]} 17. f3 {[%clk 0:01:09]}  Bxa2 {[%clk 0:01:15]} 18. Bc5 {[%clk 0:01:03]}  Re8 {[%clk 0:01:10]} 19. Be2 {[%clk 0:01:02]}  Nh5 {[%clk 0:01:04]} 20. Kf2 {[%clk 0:00:58]}  Nf4 {[%clk 0:01:02]} 21. g3 {[%clk 0:00:55]}  Nxe2 {[%clk 0:00:55]} 22. Kxe2 {[%clk 0:00:54]}  Bc4+ {[%clk 0:00:48]} 23. Ke3 {[%clk 0:00:54]}  Bh6+ {[%clk 0:00:43]} 24. f4 {[%clk 0:00:54]}  e5 {[%clk 0:00:42]} 25. Kf3 {[%clk 0:00:49]}  exf4 {[%clk 0:00:40]} 26. gxf4 {[%clk 0:00:49]}  Bg7 {[%clk 0:00:33]} 27. Rc1 {[%clk 0:00:31]}  Bb5 {[%clk 0:00:31]} 28. Rhe1 {[%clk 0:00:30]}  Bb2 {[%clk 0:00:25]} 29. Rc2 {[%clk 0:00:30]}  Bg7 {[%clk 0:00:24]} 30. e5 {[%clk 0:00:30]}  h5 {[%clk 0:00:20]} 31. Rd2 {[%clk 0:00:30]}  g5 {[%clk 0:00:18]} 32. Red1 {[%clk 0:00:29]}  gxf4 {[%clk 0:00:17]} 33. Rd8 {[%clk 0:00:29]}  Rxd8 {[%clk 0:00:16]} 34. Rxd8+ {[%clk 0:00:30]}  Kh7 {[%clk 0:00:16]} 35. Kxf4 {[%clk 0:00:31]}  Kg6 {[%clk 0:00:16]} 36. Rd6+ {[%clk 0:00:30]}  Kh7 {[%clk 0:00:15]} 37. Rd7 {[%clk 0:00:31]}  Kg6 {[%clk 0:00:15]} 38. Rxb7 {[%clk 0:00:31]}  Bh6+ {[%clk 0:00:15]} 39. Ke4 {[%clk 0:00:30]}  Bd2 {[%clk 0:00:15]} 40. Rxb5 {[%clk 0:00:26]}  cxb5 {[%clk 0:00:15]} 41. a6 {[%clk 0:00:26]} 1-0


[Site "https://www.chess.com"]

[Event "Titled Tuesday Blitz May 24 Early 2022"]
[White "Ajay Krishna, S"]
[Black "Vajda, Levente"]
[WhiteFideId "5096430"]
[BlackFideId "1203975"]
[WhiteElo "2247"]
[BlackElo "2573"]
[Result "0-1"]
[Round "01"]
[TimeControl "180+1"]
[Date "2022.05.25"]
[WhiteClock "0:00:01"]
[BlackClock "0:00:06"]

1. d4 {[%clk 0:02:55]}  d5 {[%clk 0:02:59]} 2. c4 {[%clk 0:02:54]}  e6 {[%clk 0:02:59]} 3. Nf3 {[%clk 0:02:54]}  Nf6 {[%clk 0:02:59]} 4. g3 {[%clk 0:02:54]}  Be7 {[%clk 0:02:58]} 5. Bg2 {[%clk 0:02:54]}  O-O {[%clk 0:02:59]} 6. O-O {[%clk 0:02:54]}  dxc4 {[%clk 0:02:59]} 7. Ne5 {[%clk 0:02:54]}  Nc6 {[%clk 0:02:59]} 8. Bxc6 {[%clk 0:02:54]}  bxc6 {[%clk 0:02:58]} 9. Nxc6 {[%clk 0:02:54]}  Qe8 {[%clk 0:02:59]} 10. Nxe7+ {[%clk 0:02:55]}  Qxe7 {[%clk 0:02:59]} 11. Qa4 {[%clk 0:02:55]}  e5 {[%clk 0:02:49]} 12. dxe5 {[%clk 0:02:44]}  Qxe5 {[%clk 0:02:50]} 13. Qxc4 {[%clk 0:02:43]}  Qh5 {[%clk 0:02:18]} 14. f3 {[%clk 0:02:30]}  Be6 {[%clk 0:02:07]} 15. Qc2 {[%clk 0:02:18]}  Rfd8 {[%clk 0:01:59]} 16. Be3 {[%clk 0:02:06]}  Bf5 {[%clk 0:01:42]} 17. Qc5 {[%clk 0:01:44]}  Rd5 {[%clk 0:01:33]} 18. Qc6 {[%clk 0:01:41]}  Re8 {[%clk 0:01:27]} 19. Nc3 {[%clk 0:01:12]}  Bd7 {[%clk 0:01:13]} 20. Qxc7 {[%clk 0:00:41]}  Rxe3 {[%clk 0:00:47]} 21. Nxd5 {[%clk 0:00:41]}  Qxd5 {[%clk 0:00:46]} 22. Rad1 {[%clk 0:00:39]}  Qe6 {[%clk 0:00:33]} 23. Rd6 {[%clk 0:00:39]}  Qe7 {[%clk 0:00:31]} 24. Rfd1 {[%clk 0:00:39]}  Be8 {[%clk 0:00:22]} 25. Qxe7 {[%clk 0:00:36]}  Rxe7 {[%clk 0:00:23]} 26. e4 {[%clk 0:00:36]}  h6 {[%clk 0:00:16]} 27. b4 {[%clk 0:00:32]}  Kh7 {[%clk 0:00:16]} 28. Ra6 {[%clk 0:00:30]}  Bb5 {[%clk 0:00:15]} 29. Ra5 {[%clk 0:00:27]}  Be2 {[%clk 0:00:15]} 30. Rd6 {[%clk 0:00:20]}  Bxf3 {[%clk 0:00:15]} 31. e5 {[%clk 0:00:21]}  Ng4 {[%clk 0:00:14]} 32. Rda6 {[%clk 0:00:20]}  Rd7 {[%clk 0:00:09]} 33. Rd6 {[%clk 0:00:18]}  Rc7 {[%clk 0:00:09]} 34. Rc5 {[%clk 0:00:18]}  Re7 {[%clk 0:00:10]} 35. Rd3 {[%clk 0:00:11]}  Be4 {[%clk 0:00:07]} 36. Rd4 {[%clk 0:00:11]}  Bf5 {[%clk 0:00:07]} 37. h3 {[%clk 0:00:10]}  Nxe5 {[%clk 0:00:07]} 38. Kf2 {[%clk 0:00:10]}  f6 {[%clk 0:00:07]} 39. g4 {[%clk 0:00:10]}  Bg6 {[%clk 0:00:06]} 40. Rcd5 {[%clk 0:00:08]}  Rc7 {[%clk 0:00:06]} 41. Ra5 {[%clk 0:00:06]}  Rc2+ {[%clk 0:00:05]} 42. Ke3 {[%clk 0:00:06]}  Rc3+ {[%clk 0:00:05]} 43. Kd2 {[%clk 0:00:06]}  Rxh3 {[%clk 0:00:05]} 44. Rd8 {[%clk 0:00:05]}  Nf3+ {[%clk 0:00:06]} 45. Kc1 {[%clk 0:00:04]}  Ne5 {[%clk 0:00:07]} 46. Rxa7 {[%clk 0:00:04]}  Rh2 {[%clk 0:00:07]} 47. a4 {[%clk 0:00:01]}  Be4 {[%clk 0:00:07]} 48. b5 {[%clk 0:00:01]}  Rc2+ {[%clk 0:00:07]} 49. Kd1 {[%clk 0:00:01]}  Ra2 {[%clk 0:00:08]} 50. b6 {[%clk 0:00:01]}  Nc4 {[%clk 0:00:07]} 51. b7 {[%clk 0:00:01]}  Bf3+ {[%clk 0:00:06]} 0-1


[Site "https://www.chess.com"]

[Event "Titled Tuesday Blitz May 24 Early 2022"]
[White "Andreikin, Dmitry"]
[Black "Araujo Sanchez, Josue"]
[WhiteFideId "4158814"]
[BlackFideId "6416896"]
[WhiteElo "2736"]
[BlackElo "2339"]
[Result "1-0"]
[Round "01"]
[TimeControl "180+1"]
[Date "2022.05.24"]
[WhiteClock "0:02:35"]
[BlackClock "0:02:12"]

1. d4 {[%clk 0:03:00]}  Nf6 {[%clk 0:02:56]} 2. c4 {[%clk 0:03:00]}  e6 {[%clk 0:02:53]} 3. Nf3 {[%clk 0:02:59]}  b6 {[%clk 0:02:51]} 4. a3 {[%clk 0:02:58]}  Bb7 {[%clk 0:02:50]} 5. Nc3 {[%clk 0:02:58]}  d5 {[%clk 0:02:50]} 6. cxd5 {[%clk 0:02:58]}  Nxd5 {[%clk 0:02:50]} 7. e3 {[%clk 0:02:57]}  Nd7 {[%clk 0:02:49]} 8. Bd3 {[%clk 0:02:55]}  Nxc3 {[%clk 0:02:48]} 9. bxc3 {[%clk 0:02:55]}  Bd6 {[%clk 0:02:48]} 10. e4 {[%clk 0:02:48]}  e5 {[%clk 0:02:47]} 11. Bg5 {[%clk 0:02:48]}  f6 {[%clk 0:02:46]} 12. Be3 {[%clk 0:02:47]}  Qe7 {[%clk 0:02:45]} 13. O-O {[%clk 0:02:46]}  O-O {[%clk 0:02:43]} 14. Re1 {[%clk 0:02:46]}  c5 {[%clk 0:02:34]} 15. a4 {[%clk 0:02:41]}  a6 {[%clk 0:02:30]} 16. Nh4 {[%clk 0:02:39]}  g6 {[%clk 0:02:30]} 17. Qg4 {[%clk 0:02:38]}  Kh8 {[%clk 0:02:23]} 18. Qh3 {[%clk 0:02:37]}  Kg8 {[%clk 0:02:22]} 19. Bc4+ {[%clk 0:02:36]}  Kg7 {[%clk 0:02:12]} 20. Bh6+ {[%clk 0:02:35]} 1-0


[Site "https://www.chess.com"]

[Event "Titled Tuesday Blitz May 24 Early 2022"]
[White "Avramidou, Anastasia"]
[Black "Shimanov, Aleksandr"]
[WhiteFideId "4239873"]
[BlackFideId "4198603"]
[WhiteElo "2183"]
[BlackElo "2605"]
[Result "1/2-1/2"]
[Round "01"]
[TimeControl "180+1"]
[Date "2022.05.24"]
[WhiteClock "0:00:08"]
[BlackClock "0:00:11"]

1. Nf3 {[%clk 0:02:58]}  d5 {[%clk 0:02:54]} 2. c4 {[%clk 0:02:57]}  e6 {[%clk 0:02:52]} 3. d4 {[%clk 0:02:57]}  Nf6 {[%clk 0:02:52]} 4. Nc3 {[%clk 0:02:57]}  dxc4 {[%clk 0:02:47]} 5. e3 {[%clk 0:02:55]}  a6 {[%clk 0:02:45]} 6. Bxc4 {[%clk 0:02:56]}  b5 {[%clk 0:02:44]} 7. Bd3 {[%clk 0:02:55]}  Bb7 {[%clk 0:02:44]} 8. O-O {[%clk 0:02:56]}  Nbd7 {[%clk 0:02:43]} 9. Qe2 {[%clk 0:02:48]}  c5 {[%clk 0:02:42]} 10. Rd1 {[%clk 0:02:47]}  Qb8 {[%clk 0:02:39]} 11. e4 {[%clk 0:02:44]}  cxd4 {[%clk 0:02:39]} 12. Nxd4 {[%clk 0:02:43]}  Bd6 {[%clk 0:02:40]} 13. Nf3 {[%clk 0:02:43]}  Ne5 {[%clk 0:02:32]} 14. Nxe5 {[%clk 0:02:39]}  Bxe5 {[%clk 0:02:33]} 15. h3 {[%clk 0:02:40]}  O-O {[%clk 0:02:32]} 16. Bg5 {[%clk 0:02:37]}  h6 {[%clk 0:02:25]} 17. Bxf6 {[%clk 0:02:37]}  Bxf6 {[%clk 0:02:21]} 18. Rac1 {[%clk 0:02:38]}  Qf4 {[%clk 0:02:18]} 19. Qf3 {[%clk 0:02:29]}  Qxf3 {[%clk 0:02:13]} 20. gxf3 {[%clk 0:02:29]}  Rac8 {[%clk 0:02:11]} 21. f4 {[%clk 0:02:26]}  Rfd8 {[%clk 0:01:36]} 22. e5 {[%clk 0:02:11]}  Bh4 {[%clk 0:01:35]} 23. Be4 {[%clk 0:02:10]}  Rxd1+ {[%clk 0:01:34]} 24. Rxd1 {[%clk 0:02:04]}  Rxc3 {[%clk 0:01:08]} 25. Bxb7 {[%clk 0:01:58]}  Rc2 {[%clk 0:01:08]} 26. Bxa6 {[%clk 0:01:26]}  Rxb2 {[%clk 0:01:04]} 27. Rd3 {[%clk 0:00:49]}  g6 {[%clk 0:00:55]} 28. a3 {[%clk 0:00:37]}  Bxf2+ {[%clk 0:00:54]} 29. Kg2 {[%clk 0:00:35]}  Bc5+ {[%clk 0:00:52]} 30. Kf3 {[%clk 0:00:35]}  Kg7 {[%clk 0:00:49]} 31. Rc3 {[%clk 0:00:26]}  Be7 {[%clk 0:00:46]} 32. Rd3 {[%clk 0:00:20]}  h5 {[%clk 0:00:46]} 33. Rc3 {[%clk 0:00:20]}  Bh4 {[%clk 0:00:34]} 34. Rd3 {[%clk 0:00:19]}  Kf8 {[%clk 0:00:29]} 35. Rc3 {[%clk 0:00:19]}  Ke8 {[%clk 0:00:27]} 36. Rc8+ {[%clk 0:00:13]}  Kd7 {[%clk 0:00:27]} 37. Rb8 {[%clk 0:00:13]}  Rb3+ {[%clk 0:00:24]} 38. Ke4 {[%clk 0:00:13]}  Rxa3 {[%clk 0:00:17]} 39. Bxb5+ {[%clk 0:00:13]}  Kc7 {[%clk 0:00:16]} 40. Rf8 {[%clk 0:00:13]}  Rb3 {[%clk 0:00:14]} 41. Rxf7+ {[%clk 0:00:12]}  Kb6 {[%clk 0:00:15]} 42. Bd7 {[%clk 0:00:11]}  Rb4+ {[%clk 0:00:13]} 43. Ke3 {[%clk 0:00:11]}  Rb3+ {[%clk 0:00:13]} 44. Ke4 {[%clk 0:00:12]}  Rb4+ {[%clk 0:00:10]} 45. Kf3 {[%clk 0:00:12]}  Rb3+ {[%clk 0:00:09]} 46. Ke2 {[%clk 0:00:12]}  Rb2+ {[%clk 0:00:09]} 47. Kd3 {[%clk 0:00:11]}  Kc5 {[%clk 0:00:04]} 48. Bxe6 {[%clk 0:00:10]}  Rf2 {[%clk 0:00:04]} 49. Ke3 {[%clk 0:00:10]}  Rh2 {[%clk 0:00:04]} 50. Rd7 {[%clk 0:00:09]}  Bf2+ {[%clk 0:00:03]} 51. Kf3 {[%clk 0:00:09]}  Be1 {[%clk 0:00:03]} 52. Ke4 {[%clk 0:00:04]}  Re2+ {[%clk 0:00:02]} 53. Kd3 {[%clk 0:00:03]}  Rg2 {[%clk 0:00:02]} 54. Ke3 {[%clk 0:00:03]}  Rg3+ {[%clk 0:00:02]} 55. Ke2 {[%clk 0:00:03]}  Bb4 {[%clk 0:00:03]} 56. Rd5+ {[%clk 0:00:03]}  Kc6 {[%clk 0:00:03]} 57. Rd3 {[%clk 0:00:03]}  Rxd3 {[%clk 0:00:03]} 58. Kxd3 {[%clk 0:00:04]}  Kc7 {[%clk 0:00:02]} 59. Bf7 {[%clk 0:00:04]}  h4 {[%clk 0:00:02]} 60. Bxg6 {[%clk 0:00:04]}  Kd8 {[%clk 0:00:03]} 61. Ke4 {[%clk 0:00:05]}  Ke7 {[%clk 0:00:02]} 62. Kf5 {[%clk 0:00:05]}  Bd2 {[%clk 0:00:02]} 63. Bh5 {[%clk 0:00:06]}  Be3 {[%clk 0:00:02]} 64. Bf3 {[%clk 0:00:07]}  Bd2 {[%clk 0:00:02]} 65. Be4 {[%clk 0:00:07]}  Be3 {[%clk 0:00:02]} 66. Kg4 {[%clk 0:00:08]}  Bd2 {[%clk 0:00:02]} 67. f5 {[%clk 0:00:07]}  Bc3 {[%clk 0:00:02]} 68. e6 {[%clk 0:00:04]}  Bf6 {[%clk 0:00:02]} 69. Kh5 {[%clk 0:00:05]}  Kd8 {[%clk 0:00:02]} 70. Kg6 {[%clk 0:00:05]}  Ke7 {[%clk 0:00:03]} 71. Bf3 {[%clk 0:00:05]}  Be5 {[%clk 0:00:03]} 72. Kh5 {[%clk 0:00:03]}  Bf6 {[%clk 0:00:04]} 73. Kg4 {[%clk 0:00:04]}  Kd8 {[%clk 0:00:05]} 74. Bd5 {[%clk 0:00:04]}  Ke7 {[%clk 0:00:06]} 75. Be4 {[%clk 0:00:04]}  Kd8 {[%clk 0:00:06]} 76. Kh5 {[%clk 0:00:05]}  Ke7 {[%clk 0:00:07]} 77. Kh6 {[%clk 0:00:06]}  Be5 {[%clk 0:00:07]} 78. Kg5 {[%clk 0:00:06]}  Bf6+ {[%clk 0:00:08]} 79. Kg6 {[%clk 0:00:06]}  Be5 {[%clk 0:00:08]} 80. Bf3 {[%clk 0:00:04]}  Bf6 {[%clk 0:00:08]} 81. Bg4 {[%clk 0:00:04]}  Be5 {[%clk 0:00:08]} 82. Kg5 {[%clk 0:00:04]}  Bf6+ {[%clk 0:00:09]} 83. Kf4 {[%clk 0:00:05]}  Kd8 {[%clk 0:00:09]} 84. Ke4 {[%clk 0:00:06]}  Ke7 {[%clk 0:00:10]} 85. Kf4 {[%clk 0:00:06]}  Kd8 {[%clk 0:00:10]} 86. Ke4 {[%clk 0:00:07]}  Ke7 {[%clk 0:00:11]} 87. Kf4 {[%clk 0:00:08]} 1/2-1/2


[Site "https://www.chess.com"]

[Event "Titled Tuesday Blitz May 24 Early 2022"]
[White "Bachmann, Axel"]
[Black "Leschinsky, Gary"]
[WhiteFideId "3700488"]
[BlackFideId "30951321"]
[WhiteElo "2587"]
[BlackElo "1782"]
[Result "0-1"]
[Round "01"]
[TimeControl "180+1"]
[Date "2022.05.25"]
[WhiteClock "0:00:09"]
[BlackClock "0:00:04"]

1. e4 {[%clk 0:02:59]}  c5 {[%clk 0:02:59]} 2. Nf3 {[%clk 0:02:56]}  d6 {[%clk 0:02:56]} 3. d4 {[%clk 0:02:55]}  cxd4 {[%clk 0:02:57]} 4. Nxd4 {[%clk 0:02:55]}  a6 {[%clk 0:02:58]} 5. Nc3 {[%clk 0:02:47]}  Nf6 {[%clk 0:02:56]} 6. Bd3 {[%clk 0:02:47]}  g6 {[%clk 0:02:53]} 7. O-O {[%clk 0:02:44]}  Bg7 {[%clk 0:02:54]} 8. h3 {[%clk 0:02:44]}  O-O {[%clk 0:02:53]} 9. Be3 {[%clk 0:02:44]}  Qc7 {[%clk 0:02:51]} 10. Re1 {[%clk 0:02:37]}  Nc6 {[%clk 0:02:38]} 11. Qd2 {[%clk 0:02:37]}  e5 {[%clk 0:02:32]} 12. Nde2 {[%clk 0:02:31]}  Nb4 {[%clk 0:02:30]} 13. Nb5 {[%clk 0:02:01]}  axb5 {[%clk 0:02:10]} 14. Qxb4 {[%clk 0:02:02]}  Ra4 {[%clk 0:02:00]} 15. Qxb5 {[%clk 0:01:59]}  Bd7 {[%clk 0:01:58]} 16. Qb3 {[%clk 0:01:53]}  Nxe4 {[%clk 0:01:56]} 17. Bxe4 {[%clk 0:01:45]}  Rxe4 {[%clk 0:01:57]} 18. Nc3 {[%clk 0:01:46]}  Be6 {[%clk 0:01:17]} 19. Qa3 {[%clk 0:01:29]}  Rc4 {[%clk 0:01:17]} 20. Rad1 {[%clk 0:01:25]}  Rd8 {[%clk 0:01:16]} 21. Nb5 {[%clk 0:01:11]}  Qc6 {[%clk 0:01:16]} 22. Nxd6 {[%clk 0:00:59]}  Rxc2 {[%clk 0:00:45]} 23. Nf5 {[%clk 0:00:53]}  Qe8 {[%clk 0:00:31]} 24. Nxg7 {[%clk 0:00:29]}  Kxg7 {[%clk 0:00:32]} 25. Qa5 {[%clk 0:00:28]}  Rxd1 {[%clk 0:00:25]} 26. Rxd1 {[%clk 0:00:29]}  f6 {[%clk 0:00:22]} 27. Qb6 {[%clk 0:00:29]}  Qc6 {[%clk 0:00:20]} 28. Qd8 {[%clk 0:00:24]}  Qc7 {[%clk 0:00:19]} 29. Qa8 {[%clk 0:00:17]}  Rxb2 {[%clk 0:00:19]} 30. a4 {[%clk 0:00:13]}  Bb3 {[%clk 0:00:17]} 31. Rd8 {[%clk 0:00:09]}  Rb1+ {[%clk 0:00:17]} 32. Kh2 {[%clk 0:00:09]}  e4+ {[%clk 0:00:18]} 33. g3 {[%clk 0:00:09]}  Bf7 {[%clk 0:00:14]} 34. Rh8 {[%clk 0:00:08]}  Qd6 {[%clk 0:00:13]} 35. Bf4 {[%clk 0:00:07]}  Qc5 {[%clk 0:00:12]} 36. Be3 {[%clk 0:00:05]}  Qd6 {[%clk 0:00:11]} 37. Rd8 {[%clk 0:00:05]}  Qe7 {[%clk 0:00:11]} 38. Qb8 {[%clk 0:00:05]}  Rb2 {[%clk 0:00:10]} 39. Bd4 {[%clk 0:00:03]}  Rb1 {[%clk 0:00:07]} 40. Rd6 {[%clk 0:00:04]}  Be6 {[%clk 0:00:05]} 41. Rd8 {[%clk 0:00:02]}  e3 {[%clk 0:00:04]} 42. Bxe3 {[%clk 0:00:01]}  Qf7 {[%clk 0:00:04]} 43. Qd6 {[%clk 0:00:02]}  Ra1 {[%clk 0:00:02]} 44. g4 {[%clk 0:00:01]}  Ra2 {[%clk 0:00:03]} 45. Rf8 {[%clk 0:00:01]}  Qd7 {[%clk 0:00:02]} 46. Bh6+ {[%clk 0:00:02]}  Kxh6 {[%clk 0:00:02]} 47. Qf4+ {[%clk 0:00:02]}  Kg7 {[%clk 0:00:02]} 48. Qxf6+ {[%clk 0:00:03]}  Kh6 {[%clk 0:00:03]} 49. Qh4+ {[%clk 0:00:02]}  Kg7 {[%clk 0:00:03]} 50. Qf6+ {[%clk 0:00:03]}  Kh6 {[%clk 0:00:04]} 51. g5+ {[%clk 0:00:03]}  Kh5 {[%clk 0:00:04]} 52. Kg3 {[%clk 0:00:03]}  Qd6+ {[%clk 0:00:04]} 53. Kg2 {[%clk 0:00:02]}  Bd5+ {[%clk 0:00:04]} 54. Kf1 {[%clk 0:00:01]}  Bc4+ {[%clk 0:00:04]} 55. Kg2 {[%clk 0:00:01]}  Bd5+ {[%clk 0:00:03]} 56. Kg1 {[%clk 0:00:02]}  Qxf6 {[%clk 0:00:04]} 57. gxf6 {[%clk 0:00:02]}  Ra1+ {[%clk 0:00:05]} 58. Kh2 {[%clk 0:00:02]}  Kh4 {[%clk 0:00:05]} 59. f3 {[%clk 0:00:01]}  Ra2+ {[%clk 0:00:04]} 60. Kg1 {[%clk 0:00:02]}  Kg3 {[%clk 0:00:04]} 61. Kf1 {[%clk 0:00:02]}  Kxf3 {[%clk 0:00:02]} 62. Ke1 {[%clk 0:00:03]}  Ke3 {[%clk 0:00:02]} 63. Kd1 {[%clk 0:00:04]}  Kd3 {[%clk 0:00:03]} 64. Kc1 {[%clk 0:00:04]}  Rf2 {[%clk 0:00:02]} 65. f7 {[%clk 0:00:03]}  Rxf7 {[%clk 0:00:02]} 66. Rd8 {[%clk 0:00:04]}  Kc4 {[%clk 0:00:02]} 67. a5 {[%clk 0:00:05]}  Kc5 {[%clk 0:00:03]} 68. Rc8+ {[%clk 0:00:05]}  Kb5 {[%clk 0:00:03]} 69. Rd8 {[%clk 0:00:06]}  Bc6 {[%clk 0:00:04]} 70. Rh8 {[%clk 0:00:06]}  h5 {[%clk 0:00:03]} 71. h4 {[%clk 0:00:07]}  Rf5 {[%clk 0:00:04]} 72. Kd2 {[%clk 0:00:08]}  Rf4 {[%clk 0:00:04]} 73. Rh6 {[%clk 0:00:08]}  Rg4 {[%clk 0:00:04]} 74. Rxg6 {[%clk 0:00:09]}  Rxg6 {[%clk 0:00:04]} 0-1


[Site "https://www.chess.com"]

[Event "Titled Tuesday Blitz May 24 Early 2022"]
[White "Bacrot, Etienne"]
[Black "Baches Garcia, Guillermo"]
[WhiteFideId "605506"]
[BlackFideId "2209764"]
[WhiteElo "2673"]
[BlackElo "2507"]
[Result "0-1"]
[Round "01"]
[TimeControl "180+1"]
[Date "2022.05.24"]
[WhiteClock "0:00:15"]
[BlackClock "0:00:05"]

1. e4 {[%clk 0:02:57]}  c5 {[%clk 0:03:00]} 2. Nf3 {[%clk 0:02:56]}  d6 {[%clk 0:02:59]} 3. Bb5+ {[%clk 0:02:55]}  Bd7 {[%clk 0:02:59]} 4. Bxd7+ {[%clk 0:02:54]}  Qxd7 {[%clk 0:03:00]} 5. O-O {[%clk 0:02:54]}  Nf6 {[%clk 0:02:59]} 6. Re1 {[%clk 0:02:54]}  Nc6 {[%clk 0:02:59]} 7. c3 {[%clk 0:02:53]}  e6 {[%clk 0:02:59]} 8. d4 {[%clk 0:02:53]}  cxd4 {[%clk 0:03:00]} 9. cxd4 {[%clk 0:02:53]}  d5 {[%clk 0:03:00]} 10. e5 {[%clk 0:02:53]}  Ne4 {[%clk 0:03:01]} 11. Nbd2 {[%clk 0:02:53]}  Nxd2 {[%clk 0:03:01]} 12. Bxd2 {[%clk 0:02:53]}  Bb4 {[%clk 0:03:01]} 13. Bxb4 {[%clk 0:02:52]}  Nxb4 {[%clk 0:03:01]} 14. a3 {[%clk 0:02:53]}  Nc6 {[%clk 0:03:01]} 15. Rc1 {[%clk 0:02:53]}  O-O {[%clk 0:03:01]} 16. Rc3 {[%clk 0:02:53]}  Rac8 {[%clk 0:03:01]} 17. h4 {[%clk 0:02:53]}  Ne7 {[%clk 0:02:55]} 18. Rd3 {[%clk 0:02:49]}  Rc4 {[%clk 0:02:51]} 19. Nd2 {[%clk 0:02:48]}  Rc6 {[%clk 0:02:46]} 20. Nf1 {[%clk 0:02:42]}  Nf5 {[%clk 0:02:37]} 21. h5 {[%clk 0:02:32]}  h6 {[%clk 0:02:16]} 22. g4 {[%clk 0:02:28]}  Ne7 {[%clk 0:02:16]} 23. Rg3 {[%clk 0:02:13]}  f6 {[%clk 0:02:06]} 24. Kg2 {[%clk 0:01:57]}  Qe8 {[%clk 0:01:42]} 25. Nd2 {[%clk 0:01:50]}  f5 {[%clk 0:01:29]} 26. g5 {[%clk 0:01:38]}  f4 {[%clk 0:01:26]} 27. Rg4 {[%clk 0:01:37]}  Qxh5 {[%clk 0:01:15]} 28. Rh1 {[%clk 0:00:50]}  f3+ {[%clk 0:01:05]} 29. Qxf3 {[%clk 0:00:49]}  Qxh1+ {[%clk 0:01:02]} 30. Kxh1 {[%clk 0:00:49]}  Rxf3 {[%clk 0:01:02]} 31. Nxf3 {[%clk 0:00:50]}  h5 {[%clk 0:00:54]} 32. Rg1 {[%clk 0:00:47]}  g6 {[%clk 0:00:48]} 33. Kg2 {[%clk 0:00:34]}  Nf5 {[%clk 0:00:48]} 34. Rd1 {[%clk 0:00:21]}  Kf7 {[%clk 0:00:43]} 35. Rd3 {[%clk 0:00:21]}  Rc4 {[%clk 0:00:40]} 36. Kf1 {[%clk 0:00:20]}  Ke7 {[%clk 0:00:30]} 37. Ke2 {[%clk 0:00:19]}  Kd7 {[%clk 0:00:30]} 38. Kd1 {[%clk 0:00:19]}  h4 {[%clk 0:00:27]} 39. Rd2 {[%clk 0:00:19]}  h3 {[%clk 0:00:25]} 40. Ke2 {[%clk 0:00:19]}  Nxd4+ {[%clk 0:00:17]} 41. Nxd4 {[%clk 0:00:19]}  h2 {[%clk 0:00:14]} 42. Rd1 {[%clk 0:00:19]}  Rxd4 {[%clk 0:00:14]} 43. Rh1 {[%clk 0:00:19]}  Rh4 {[%clk 0:00:13]} 44. Kf3 {[%clk 0:00:19]}  Kc6 {[%clk 0:00:10]} 45. Kg3 {[%clk 0:00:20]}  Rh5 {[%clk 0:00:10]} 46. f4 {[%clk 0:00:20]}  d4 {[%clk 0:00:11]} 47. f5 {[%clk 0:00:13]}  Rxg5+ {[%clk 0:00:06]} 48. Kf4 {[%clk 0:00:13]}  Rxf5+ {[%clk 0:00:06]} 49. Ke4 {[%clk 0:00:14]}  Rh5 {[%clk 0:00:06]} 50. Kxd4 {[%clk 0:00:14]}  g5 {[%clk 0:00:06]} 51. Ke4 {[%clk 0:00:14]}  Rh4+ {[%clk 0:00:06]} 52. Kf3 {[%clk 0:00:15]}  Kd5 {[%clk 0:00:06]} 53. Kg3 {[%clk 0:00:15]}  Kxe5 {[%clk 0:00:06]} 54. Kg2 {[%clk 0:00:16]}  Kf5 {[%clk 0:00:06]} 55. Rf1+ {[%clk 0:00:16]}  Kg6 {[%clk 0:00:06]} 56. Kh1 {[%clk 0:00:16]}  g4 {[%clk 0:00:06]} 57. Rf4 {[%clk 0:00:16]}  Kg5 {[%clk 0:00:05]} 58. Rb4 {[%clk 0:00:16]}  g3 {[%clk 0:00:05]} 59. Rb5+ {[%clk 0:00:15]}  Kg4 {[%clk 0:00:05]} 0-1


[Site "https://www.chess.com"]

[Event "Titled Tuesday Blitz May 24 Early 2022"]
[White "Bas Mas, Jose Joaquin"]
[Black "Vignesh, N R"]
[WhiteFideId "22219064"]
[BlackFideId "25012215"]
[WhiteElo "2233"]
[BlackElo "2363"]
[Result "0-1"]
[Round "01"]
[TimeControl "180+1"]
[Date "2022.05.25"]
[WhiteClock "0:00:45"]
[BlackClock "0:00:33"]

1. e4 {[%clk 0:02:59]}  e5 {[%clk 0:02:58]} 2. Nf3 {[%clk 0:02:56]}  Nc6 {[%clk 0:02:58]} 3. c3 {[%clk 0:02:55]}  Nf6 {[%clk 0:02:50]} 4. d4 {[%clk 0:02:49]}  exd4 {[%clk 0:02:49]} 5. e5 {[%clk 0:02:45]}  Ne4 {[%clk 0:02:48]} 6. Bd3 {[%clk 0:02:40]}  d5 {[%clk 0:02:44]} 7. exd6 {[%clk 0:02:40]}  Nxd6 {[%clk 0:02:42]} 8. cxd4 {[%clk 0:02:34]}  Be7 {[%clk 0:02:41]} 9. O-O {[%clk 0:02:34]}  O-O {[%clk 0:02:41]} 10. h3 {[%clk 0:02:34]}  Bf5 {[%clk 0:02:40]} 11. a3 {[%clk 0:02:29]}  Bf6 {[%clk 0:02:38]} 12. Be3 {[%clk 0:02:20]}  Qd7 {[%clk 0:02:31]} 13. Nc3 {[%clk 0:02:18]}  Rfe8 {[%clk 0:02:21]} 14. Rc1 {[%clk 0:02:06]}  Rad8 {[%clk 0:02:18]} 15. Nd5 {[%clk 0:02:02]}  Ne4 {[%clk 0:02:01]} 16. Nxf6+ {[%clk 0:02:00]}  Nxf6 {[%clk 0:02:00]} 17. Bb5 {[%clk 0:01:56]}  Be4 {[%clk 0:01:45]} 18. Ne5 {[%clk 0:01:50]}  Qe6 {[%clk 0:01:45]} 19. Nxc6 {[%clk 0:01:48]}  bxc6 {[%clk 0:01:46]} 20. Ba4 {[%clk 0:01:40]}  Bd5 {[%clk 0:01:38]} 21. Bg5 {[%clk 0:01:36]}  h6 {[%clk 0:01:30]} 22. Bxf6 {[%clk 0:01:27]}  Qxf6 {[%clk 0:01:31]} 23. Qg4 {[%clk 0:01:22]}  Re4 {[%clk 0:01:28]} 24. Qg3 {[%clk 0:01:18]}  Rxd4 {[%clk 0:01:25]} 25. Qxc7 {[%clk 0:01:16]}  Rxa4 {[%clk 0:01:23]} 26. Rce1 {[%clk 0:01:08]}  Rf8 {[%clk 0:01:09]} 27. Re3 {[%clk 0:01:03]}  Qxb2 {[%clk 0:01:05]} 28. Rfe1 {[%clk 0:01:00]}  Rxa3 {[%clk 0:01:01]} 29. Re8 {[%clk 0:00:58]}  Rxe8 {[%clk 0:01:01]} 30. Rxe8+ {[%clk 0:00:57]}  Kh7 {[%clk 0:01:02]} 31. Qd6 {[%clk 0:00:54]}  Qc1+ {[%clk 0:00:41]} 32. Kh2 {[%clk 0:00:53]}  Ra1 {[%clk 0:00:36]} 33. Qe5 {[%clk 0:00:44]}  Qg1+ {[%clk 0:00:33]} 34. Kg3 {[%clk 0:00:45]}  Qxg2+ {[%clk 0:00:33]} 0-1


[Site "https://www.chess.com"]